Cogmind - Beta 9.4 @@@ ROGUE MODE // 2020.02.03 @ 18:01:38 Player: derk Result: Destroyed by G-34 Mercenary with Small Laser Performance ------------- Evolutions (0) 0 Regions Visited (1) 200 Robots Destroyed (14) 70 Value Destroyed (323) 323 Prototype IDs (0) 0 Alien Tech Used (0) 0 Bonus (0) 0 TOTAL SCORE: 593 Bonus ------- None Cogmind --------- Core Integrity 0/250 Matter 290/300 Energy 160/160 System Corruption 0% Temperature Cool (35) Movement Core (150) Ox2 Location -10/Materials Parts ------- > --- POWER (1) -------- Light Nuclear Core > --- PROPULSION (2) --- (None) > --- UTILITY (2) ------ Small Storage Unit Hacking Suite > --- WEAPON (2) ------- (None) > --- INVENTORY (6) ---- Wheel Heat Sink Medium Matter Pod (100) Peak State ------------ > --- POWER ------------ Light Ion Engine > --- PROPULSION ------- Light Treads Compact Wheel > --- UTILITY ---------- Small Storage Unit Hacking Suite > --- WEAPON ----------- Small Laser Particle Gun > --- INVENTORY -------- Wheel Heat Sink Medium Matter Pod [Rating: 10] Favorites ----------- Power Light Ion Engine Engine Light Ion Engine Power Core Light Nuclear Core Propulsion Compact Wheel Treads Light Treads Wheel Compact Wheel Utility Small Storage Unit Storage Small Storage Unit Hackware Hacking Suite Weapon Light Assault Rifle Energy Gun EM Pulse Gun Ballistic Gun Light Assault Rifle Build | -11 -10 ------- Run | Scr Mat Slots Evolved . | . . Power . | . . Propulsion . | . . Utility . | . . Weapon . | . . Parts Attached 18 | 6 12 Power 5 | 1 4 Engine 4 | 1 3 Core 1 | . 1 Reactor . | . . Propulsion 5 | 2 3 Treads 2 | . 2 Leg . | . . Wheel 3 | 2 1 Hover . | . . Flight . | . . Utility 2 | 1 1 Device . | . . Storage 1 | 1 . Processor . | . . Hackware 1 | . 1 Protection . | . . Artifact . | . . Weapon 6 | 2 4 Energy Gun 5 | 1 4 Energy Cannon . | . . Ballistic Gun 1 | 1 . Ballistic Cannon . | . . Launcher . | . . Special Weapon . | . . Impact Weapon . | . . Slashing Weapon . | . . Piercing Weapon . | . . Special Melee Weapon . | . . Unidentified Prototypes . | . . Parts Lost 14 | . 14 Power 4 | . 4 Propulsion 4 | . 4 Utility . | . . Weapon 6 | . 6 Highest Loss Streak 7 | . 7 Average Slot Usage (%) 85 | . 85 Engine 13 | . 13 Treads 6 | . 6 Wheel 20 | . 20 Storage 14 | . 14 Hackware 9 | . 9 Energy Gun 11 | . 11 Ballistic Gun 10 | . 10 Naked Turns . | . . Heaviest Build 10 | 10 10 Greatest Support 40 | 26 40 Greatest Overweight (x) 2 | 1 2 Average Overweight (x) . | . . Largest Inventory Capacity 6 | 6 6 Average Capacity 5 | 5 6 Most Carried 6 | 4 6 Average Carried 4 | 2 4 Final Capacity 6 | 6 6 Final Carried 4 | 4 3 Class Distribution -------------------- 100% | Mutant Dominant Class ---------------- Mutant | -10/Materials Resources | -11 -10 ----------- Run | Scr Mat Matter Collected 414 | 222 192 Remotely . | . . Salvage Created 441 | 53 388 Parts 32 | . 32 Haulers Intercepted . | . . Recyclers Shooed . | . . Parts Field Recycled . | . . Retrieved Matter . | . . Parts Self-Destructed . | . . Prevented . | . . Kills | -11 -10 ------- Run | Scr Mat Combat Hostiles Destroyed 12 | . 12 Melee 3 | . 3 Guns 9 | . 9 Classes Destroyed 4 | 1 3 Recycler 1 | 1 . Operator 1 | . 1 Swarmer 5 | . 5 Grunt 7 | . 7 Best Kill Streak 4 | 1 4 Combat Bots Only 4 | . 4 Max Kills in Single Turn 1 | 1 1 Gunslinging . | . . Exploded . | . . Melee 1 | . 1 Uniques/NPCs Destroyed . | . . Combat | -11 -10 -------- Run | Scr Mat Damage Taken 1126 | 40 1086 Core 254 | . 254 Absorbed by Shields . | . . Core Remaining (%) 100 | 100 . Volleys Fired 69 | 3 66 Largest 2 | 2 2 Hottest 105 | 60 105 Shots Fired 98 | 6 92 Gun 98 | 6 92 Cannon . | . . Launcher . | . . Special . | . . Kinetic 42 | 3 39 Thermal 29 | . 29 Explosive . | . . Electromagnetic 27 | 3 24 Robot Hit Streak 9 | 5 9 Robot Miss Streak 4 | . 4 Penetration Max . | . . Secondary Targets . | . . Shots Hit Robots 60 | 5 55 Core Hits 28 | 2 26 Critical Hits . | . . Critical Kills . | . . Critical Parts Destroyed . | . . Melee Attacks . | . . Impact . | . . Slashing . | . . Piercing . | . . Sneak Attacks . | . . Combat Hostiles . | . . Follow-up Attacks . | . . Damage Inflicted 766 | 100 666 Guns 704 | 56 648 Cannons . | . . Explosions 44 | 44 . Melee . | . . Ramming 18 | . 18 Kinetic 229 | 17 212 Thermal 289 | 44 245 Explosive . | . . Electromagnetic 230 | 39 191 Impact . | . . Slashing . | . . Piercing . | . . Highest Corruption . | . . Average Corruption . | . . Corruption Purged . | . . Overload Shots . | . . Overflow Damage 14 | 14 . Projectiles . | . . Explosions 14 | 14 . Melee . | . . Knockbacks . | . . Impact . | . . Kinetic . | . . Secondary . | . . Self-Inflicted Damage 41 | 40 1 Shots 1 | 1 . Rammed 13 | . 13 Targets Rammed 16 | . 16 Kicked . | . . Crushed 3 | . 3 Highest Temperature 206 | 52 206 Average Temperature 39 | 27 39 Received Heat Transfer 333 | . 333 Effects 1 | . 1 Interference 1 | . 1 Siege Activations . | . . Robots Corrupted . | . . Combat Hostiles . | . . Parts Fried . | . . Impact Corruptions . | . . Robots Melted . | . . Combat Hostiles . | . . Parts Melted . | . . Heat Transferred 611 | 50 561 Parts Sabotaged . | . . Parts Stolen . | . . Parts Stripped . | . . Power Chain Reactions 1 | 1 . Missiles Intercepted . | . . Alert | -11 -10 ------- Run | Scr Mat Peak Influence 263 | 5 263 Average Influence 107 | . 122 Maximum Alert Level 1 | . 1 Low Security (%) 88 | 100 86 Level 1 11 | . 13 Level 2 . | . . Level 3 . | . . Level 4 . | . . Level 5 . | . . High Security . | . . Max Security . | . . Squads Dispatched 4 | . 4 Investigation 1 | . 1 Extermination . | . . Reinforcement 3 | . 3 Assault . | . . Garrison . | . . Intercept . | . . Construction Impeded . | . . Haulers Reinforced . | . . Stealth | -11 -10 --------- Run | Scr Mat Distress Signals 5 | . 5 Communications Jammed . | . . Distress Signals . | . . Times Spotted 33 | . 33 Peak Tracking Total 7 | . 7 Tactical Retreats 5 | . 5 Traps | -11 -10 ------- Run | Scr Mat Traps Triggered 1 | . 1 Indirectly . | . . Trap Hack Attempts . | . . Triggered . | . . Disarmed . | . . Reprogrammed . | . . Reused . | . . Traps Extracted . | . . Installed . | . . Triggered . | . . Machines | -11 -10 ---------- Run | Scr Mat Machines Disabled . | . . Max in Single Turn . | . . Machines Sabotaged . | . . Garrisons Compromised . | . . Overloaded Fab Kills . | . . Fab Network Shutdowns . | . . Hacking | -11 -10 --------- Run | Scr Mat Machines Accessed 2 | . 2 Terminals 2 | . 2 Fabricators . | . . Repair Stations . | . . Recycling Units . | . . Scanalyzers . | . . Garrison Access . | . . Total Hacks 4 | . 4 Successful 1 | . 1 Failed 2 | . 2 Catastrophic . | . . Database Lockouts 1 | . 1 Manual 4 | . 4 Terminals 4 | . 4 Fabricators . | . . Repair Stations . | . . Recycling Units . | . . Scanalyzers . | . . Garrison Access . | . . Terminal Hacks 1 | . 1 Part Schematic 1 | . 1 Fabricator Hacks . | . . Repair Station Hacks . | . . Recycling Unit Hacks . | . . Scanalyzer . | . . Garrison Access Hacks . | . . Unauthorized Hacks . | . . Terminals . | . . Fabricators . | . . Repair Stations . | . . Recycling Units . | . . Scanalyzers . | . . Garrison Access . | . . Data Cores Recovered . | . . Used . | . . Hacking Detections 2 | . 2 Full Trace Events . | . . Feedback Events . | . . Feedback Blocked . | . . Robot Schematics Acquired . | . . Robots Built . | . . Matter . | . . Time . | . . Total Robot Build Rating . | . . Part Schematics Acquired 1 | . 1 Parts Built . | . . Matter . | . . Time . | . . Total Part Build Rating . | . . Parts Repaired . | . . Time . | . . Parts Recycled . | . . Recycled Matter . | . . Retrieved Matter . | . . Retrieved Components . | . . Parts Scanalyzed . | . . Part Schematics Acquired . | . . Parts Damaged . | . . Bothacking | -11 -10 ------------ Run | Scr Mat Used RIF Installer . | . . Robots Hacked . | . . Non-combat . | . . Combat . | . . Robot Hacks Applied . | . . Relay Couplers Released . | . . Robots Rewired . | . . Allies Hacked . | . . Hacks Repelled . | . . Allies | -11 -10 -------- Run | Scr Mat Total Allies . | . . Largest Group . | . . Highest-Rated Group . | . . Highest-Rated Ally . | . . Total Orders . | . . Ally Attacks . | . . Total Damage . | . . Kills . | . . Allies Corrupted . | . . Allies Melted . | . . Intel | -11 -10 ------- Run | Scr Mat Robot Analysis Total . | . . Derelict Logs Recovered . | . . Drone Launches . | . . Drone Recoveries . | . . Exploration | -11 -10 ------------- Run | Scr Mat Turns Passed 498 | 61 437 Spaces Moved 268 | 44 224 Core 15 | 10 5 Treads 16 | . 16 Legs . | . . Wheels 237 | 34 203 Hover . | . . Flight . | . . Fastest Speed 50 | 50 90 Average Speed 94 | 88 96 Slowest Speed 160 | 100 160 Overloaded Moves . | . . Propulsion Burnouts . | . . Robots Hopped . | . . Cave-ins Triggered . | . . Exploration Rate (%) 22 | 3 42 Regions Visited 1 Branch Regions . Pre-discovered Areas . | . . Known Exits Taken . | . . Unknown Exits Taken 1 | 1 . Scrap Searched . | . . Spaces Dug . | . . Terrain Destroyed 2 | 2 . Melee . | . . Projectile . | . . AOE 2 | 2 . Actions | -11 -10 --------- Run | Scr Mat Total 406 | 57 349 Wait 27 | . 27 Move 267 | 43 224 Hop . | . . Pick Up 9 | 5 4 Fast Attach 11 | 5 6 Attach 6 | 1 5 Detach . | . . Swap 1 | . 1 Drop . | . . Fire 69 | 3 66 Melee . | . . Ram 1 | . 1 Kick . | . . Crush 15 | . 15 Escape Stasis . | . . Rewire . | . . Trap . | . . Miscellaneous . | . . Route ------- -11/Scrapyard -10/Materials (discovered 2 exits: [*Mat] / [*Min]) History --------- Turn | Location | Event 2 | -11/Scrapyard | Met Revision 17 25 | -11/Scrapyard | Discovered new exit (range 15) 62 | -11/Scrapyard | Entered Materials 154 | -10/Materials | Discovered new exit (range 12) 223 | -10/Materials | Discovered new exit (range 16) 235 | -10/Materials | Central database locked down 301 | -10/Materials | Build established: Mutant 391 | -10/Materials | Core integrity fell below 50% 424 | -10/Materials | Lost 6 parts (2p1n3w) 481 | -10/Materials | Core integrity fell below 20% 499 | -10/Materials | Destroyed by G-34 Mercenary with Small Laser Last Messages --------------- 00466_ G-47 Trooper destroyed. 00470_ W-16 Scout sends out distress signal. 00470_ Acquired 15 matter. 00473_ Acquired Particle Gun. 00477_ K-01 Serf cleans the Machine. 00478_ Sml. Laser destroyed. 00479_ Lgt. Treads destroyed. 00480_ K-01 Serf collects debris. 00480_ K-01 Serf cleans the Machine. 00482_ Lgt. Ion Engine destroyed. 00482_ Destroyed Sml. Laser. 00484_ Com. Wheel destroyed. 00484_ K-01 Serf collects debris. 00490_ Overheating: System interference. 00490_ Particle Gun temporarily disabled. 00490_ K-01 Serf cleans the Machine. 00490_ Particle Gun destroyed. 00490_ Slammed into S-10 Pest. 00491_ K-01 Serf collects debris. 00493_ Acquired Lgt. Nuclear Core. Map ----- +----------------------------------------------------+ | ?? ??????????????#?? # #?????? | | ?? ?????????????????##### #######+### #?????? | | ?? ??????????????????? ??????# # #?????? | | ???????????????????????????????# """ # #?????? | | ???????????????????????????????# """ # #?????? | | ???????????????????????????????# """ # #?????? | | ???????????????????????????????# # ####### | | ???????????????????????????????#= | !# # # | | ???????????????????????????????######## # T # | | ???????????????? ????????????????????# *#= # | | ???????????????# ????????????######### #*! # | | ???????????????# ????????????# ## [ +=""" # | | ????????" ????# ????????????# """ ## =# """ # | | ????????"| ???# ????????????# """ ## # """ # | | ????????"" ???# ????????????# """ ## ####### | | ????????"| ??# ????????????# # #????? | | ????????" ??# ^#???????????# """ # #????? | | ?????????"" ?# #???????????# """ + < #????? | | ??????????# ## ###?????????# """ # #????? | | ??????????# #?????????# # #????? | | ??????????# /?????????# """ ## ##????? | | ??????????# #?????????# """ ## #?????? | | ?????????## #?????????# """ ## #?????? | | ?????##### % %#?????????# ## #?????? | | ?? %%################### #?????? | | ?? %g% @ %* #?????? | | ?? *###########+####### #?????? | | ??? ##### #???????? ?#####+#####??? | | ?????????###+########???????# """ # #??? | | ????????????????????????????# """ # #??? | | ????????????????????????????# """ # """ #??? | | ????????????????????????????# #""""" #??? | | ????????????????????????????# #""""" #??? | | ????????????????????????????########""""" ! #??? | | ???????????????????????????????????? """ #??? | | ????????????????????????????????????? #??? | | ??????????????????????????????????????########??? | | ????????????????????????????????????????????????? | | ????????????????????????????????????????????????? | | ????????????????????????????????????????????????? | | ????????????????????????????????????????????????? | | ????????????????????????????????????????????????? | | ????????????????????????????????????????????????? | | ????????????????????????????????????????????????? | | ????????????????????????????????????????????????? | | ????????????????????????????????????????????????? | | ????????????????????????????????????????????????? | | ????????????????????????????????????????????????? | | ????????????????????????????????????????????????? | | ????????????????????????????????????????????????? | +----------------------------------------------------+ Best States ------------- Heat Dissipation 25 Energy Generation 10 Energy Capacity 125 Matter Stores 300 Matter Capacity 300 Sight Range 16 Terrain Scan Density 10 Evasion (%) 42 Recoil Reduction 2 Offensive Hacking 10 Item Schematics ----------------- Med. Storage Unit | -10/Materials | Hacked Robot Schematics ------------------ None Fabricated ------------ Nothing Alien Tech Used ----------------- None Achievements -------------- None Challenges ------------ None Game ------ Seed TerrabombSupersonicClaw Manual? 0 Play Time 00:13:34 Cumulative 62.7 hours Start 2020.02.03 @ 17:45:04 End 2020.02.03 @ 18:01:38 Sessions 1 Manual Loads 0 Difficulty Rogue Special Mode None Game No. 33 Rogue 33 Adventurer 0 Explorer 0 Win Type - Total 0 Types 0/0/0/0/0/0/0 Lore% 35 Gallery% 57 Achievement% 44 Wizard Run 0 Options --------- ASCII 0 Keyboard 0 Movement Numpad Keybinds 0 Fullscreen 1 Font 18/SmallcapsGlow Map View 76x50 Tactical HUD 1 Map Filters NONE Filters NONE Steam 1 RUN: 6e57aa1e-aec8-4605-81dd-7677af0f1a14